Cogmind - Beta 16 @@@ ROGUE MODE // 2025.12.04 @ 16:13:36 Player: lepire Result: Destroyed by as-91079 with Assembled Heavy Rifle Performance ------------- Evolutions (0) 0 Regions Visited (3) 600 Robots Destroyed (17) 85 Value Destroyed (348) 348 Prototype IDs (23) 460 Alien Tech Used (0) 0 Bonus (300) 300 TOTAL SCORE: 1793 Bonus ------- Aligned with FarCom 300 Cogmind --------- Core Integrity 0/250 Matter 300/300 Energy 100/100 System Corruption 1% Temperature Cool (0) Movement Rolling (130) Ox2 Location -10/Exiles Parts ------- > --- POWER (1) -------- (None) > --- PROPULSION (2) --- Compact Wheel > --- UTILITY (2) ------ High-capacity Storage Unit Targeting Computer > --- WEAPON (2) ------- (None) > --- INVENTORY (20) --- Fission Core Light Treads Flying Fortress v7 Heat Sink Medium Battery (150) Small Matter Pod (50) Visual Processing Unit Improved Terrain Scanner Cloak of Protection Power Shielding Utility Shielding Small Laser XL Autogun Array Datajack Peak State ------------ > --- POWER ------------ Light Ion Engine > --- PROPULSION ------- Light Treads Compact Wheel > --- UTILITY ---------- High-capacity Storage Unit Targeting Computer > --- WEAPON ----------- Medium Laser Small Laser > --- INVENTORY -------- Fission Core Light Treads Flying Fortress v7 Heat Sink Medium Battery Small Matter Pod Visual Processing Unit Improved Terrain Scanner Cloak of Protection Power Shielding Utility Shielding XL Autogun Array Datajack Mining Laser [Rating: 16] Favorites ----------- Power Light Ion Engine Engine Light Ion Engine Propulsion Compact Wheel Treads Light Treads Leg Aluminum Leg Wheel Compact Wheel Utility High-capacity Storage Unit Device Seismic Detector Storage High-capacity Storage Unit Processor Targeting Computer Protection Backup Plating I Weapon Small Laser Energy Gun Small Laser Ballistic Gun Light Assault Rifle Special Weapon Mining Laser Build | -11 -10 -10 -10 ------- Run | Yrd Mat Min Exi Slots Evolved . | . . . . Power . | . . . . Propulsion . | . . . . Utility . | . . . . Weapon . | . . . . Parts Attached 17 | 2 11 3 1 Power 1 | . 1 . . Engine 1 | . 1 . . Core . | . . . . Reactor . | . . . . Propulsion 4 | 2 1 1 . Treads 1 | 1 . . . Leg . | . . . . Wheel 3 | 1 1 1 . Hover . | . . . . Flight . | . . . . Utility 7 | . 5 2 . Device 2 | . 1 1 . Storage 4 | . 4 . . Processor 1 | . . 1 . Hackware . | . . . . Protection . | . . . . Artifact . | . . . . Weapon 5 | . 4 . 1 Energy Gun 3 | . 3 . . Energy Cannon . | . . . . Ballistic Gun 1 | . 1 . . Ballistic Cannon . | . . . . Launcher . | . . . . Special Weapon 1 | . . . 1 Impact Weapon . | . . . . Slashing Weapon . | . . . . Piercing Weapon . | . . . . Special Melee Weapon . | . . . . Unidentified Prototypes . | . . . . Parts Lost 7 | . 3 . 4 Power 2 | . 1 . 1 Propulsion 1 | . . . 1 Utility 1 | . 1 . . Weapon 3 | . 1 . 2 Highest Loss Streak 4 | . 2 . 4 To Critical Strikes . | . . . . Average Backups 8 | 5 6 10 14 Power . | 1 . . . Propulsion 1 | 3 1 1 1 Utility 4 | . 2 6 8 Weapon 1 | 1 1 2 2 Tool/Special . | . . . . Unused Backups 18 | . 6 . 12 Power 2 | . 1 . 1 Propulsion 3 | . 1 . 2 Utility 7 | . . . 7 Weapon 5 | . 4 . 1 Tool/Special 1 | . . . 1 Average Slot Usage (%) 97 | . 97 99 98 Engine 13 | . 13 14 13 Treads 13 | . 14 14 13 Wheel 14 | . 14 14 14 Device 2 | . . 9 . Storage 15 | . 16 14 14 Processor 3 | . . 3 14 Protection 5 | . 8 . . Energy Gun 25 | . 24 28 26 Ballistic Gun 1 | . 3 . . Peak Build Rating 16 | 6 8 8 16 Average Rating 7 | 6 6 7 11 On Entrance 6 | 6 6 7 8 Avg Prop Armor Cover (%) 12 | . 11 14 13 Naked Turns . | . . . . Heaviest Build 89 | 12 89 47 46 Greatest Support 20 | 20 20 16 16 Greatest Overweight (x) 5 | . 5 2 2 Average Overweight (x) 1 | . . 2 2 Largest Inventory Capacity 25 | 8 25 20 20 Average Capacity 15 | 8 11 20 20 Most Carried 20 | 6 11 14 20 Average Carried 9 | 5 6 11 16 Final Capacity 20 | 8 20 20 20 Final Carried 20 | 4 9 14 20 Class Distribution -------------------- 100% | Mutant Dominant Class ---------------- Mutant | -10/Materials Mutant | -10/Mines Mutant | -10/Exiles Resources | -11 -10 -10 -10 ----------- Run | Yrd Mat Min Exi Matter Collected 441 | 213 128 100 . Remotely . | . . . . Salvage Created 640 | . 586 54 . Parts 31 | . 31 . . Haulers Intercepted 1 | . 1 . . Recyclers Shooed 2 | . 2 . . Parts Field Recycled . | . . . . Retrieved Matter . | . . . . Parts Self-Destructed . | . . . . Prevented . | . . . . Parts Restored . | . . . . Kills | -11 -10 -10 -10 ------- Run | Yrd Mat Min Exi Combat Hostiles Destroyed 14 | . 10 4 . Guns 14 | . 10 4 . Classes Destroyed 8 | . 7 1 . Builder 1 | . 1 . . Hauler 1 | . 1 . . Recycler 2 | . 2 . . Operator 1 | . 1 . . Watcher 2 | . 2 . . Swarmer 3 | . 3 . . Grunt 7 | . 7 . . Assembled 4 | . . 4 . Best Kill Streak 6 | . 6 2 . Combat Bots Only 6 | . 6 2 . Max Kills in Single Turn 1 | . 1 1 . Gunslinging . | . . . . Exploded . | . . . . Melee . | . . . . Uniques/NPCs Destroyed . | . . . . Combat | -11 -10 -10 -10 -------- Run | Yrd Mat Min Exi Hostile Shots Fired 98 | . 70 13 15 Missed 33 | . 22 5 6 Hits 65 | . 48 8 9 Melee 2 | . . 2 . Projectile 63 | . 48 6 9 Critical Strikes 1 | . . . 1 Part Disruptions 2 | . . 2 . Damage Taken 860 | . 472 133 255 Core 261 | . 93 34 134 Absorbed by Shields . | . . . . Core Remaining (%) 100 | 100 . . . Volleys Fired 75 | . 60 14 1 Largest 2 | . 2 2 1 Hottest 100 | . 90 90 100 Shots Fired 144 | . 120 23 1 Gun 143 | . 120 23 . Cannon . | . . . . Launcher . | . . . . Special 1 | . . . 1 Kinetic 11 | . 11 . . Thermal 133 | . 109 23 1 Explosive . | . . . . Electromagnetic . | . . . . Robot Hit Streak 6 | . 6 5 . Robot Miss Streak 4 | . 4 3 . Penetration Max . | . . . . Secondary Targets 1 | . 1 . . Max Gunslinging Chain 1 | . 1 . . Shots Hit Robots 88 | . 75 13 . Core Hits 39 | . 32 7 . Critical Kills . | . . . . Critical Parts Destroyed . | . . . . Critical Strikes 8 | . 6 2 . Burn 8 | . 6 2 . Melee Attacks . | . . . . Impact . | . . . . Slashing . | . . . . Piercing . | . . . . Sneak Attacks . | . . . . Combat Hostiles . | . . . . Follow-up Attacks . | . . . . Damage Inflicted 1051 | . 892 159 . Guns 1051 | . 892 159 . Cannons . | . . . . Explosions . | . . . . Melee . | . . . . Ramming . | . . . . Kinetic 62 | . 62 . . Thermal 989 | . 830 159 . Explosive . | . . . . Electromagnetic . | . . . . Impact . | . . . . Slashing . | . . . . Piercing . | . . . . Highest Corruption 1 | . 1 1 1 Average Corruption 1 | . 1 1 1 Corruption Purged . | . . . . Corruption Blocked . | . . . . Effects 18 | . 11 4 3 Message Errors 2 | . 2 . . Matter Fused 3 | . . 2 1 Heat Flow Errors 1 | . . 1 . Energy Discharges 7 | . 4 1 2 Data Loss (minor) 3 | . 3 . . Misfires 1 | . 1 . . Alerts 1 | . 1 . . Overload Shots . | . . . . Overflow Damage . | . . . . Projectiles . | . . . . Explosions . | . . . . Melee . | . . . . Knockbacks . | . . . . Impact . | . . . . Kinetic . | . . . . Secondary . | . . . . Self-Inflicted Damage . | . . . . Shots . | . . . . Rammed . | . . . . Targets Rammed . | . . . . Kicked . | . . . . Crushed . | . . . . Highest Temperature 259 | . 256 259 20 Average Temperature 99 | . 106 79 10 Received Heat Transfer 253 | . 177 40 36 Siege Activations . | . . . . Martial Activations . | . . . . Shielding Activations . | . . . . Robots Disrupted . | . . . . Combat Hostiles . | . . . . Robots Corrupted . | . . . . Combat Hostiles . | . . . . Parts Fried . | . . . . Impact Corruptions . | . . . . Robots Melted . | . . . . Combat Hostiles . | . . . . Parts Melted 4 | . 4 . . Heat Transferred 3184 | . 2603 581 . Parts Sabotaged . | . . . . Parts Stolen . | . . . . Parts Stripped . | . . . . Power Chain Reactions . | . . . . Alert | -11 -10 -10 -10 ------- Run | Yrd Mat Min Exi Maximum Alert Level . | . . . . Low Security (%) 100 | 100 100 100 . Level 1 . | . . . . Level 2 . | . . . . Level 3 . | . . . . Level 4 . | . . . . Level 5 . | . . . . High Security . | . . . . Max Security . | . . . . Peak Influence 136 | . 136 . . Initial . | . . . . Average 28 | . 39 . . Influence Increases 342 | . 342 . . Destroy 0b10 Robot/C 200 | . 200 . . Destroy 0b10 Robot/NC 35 | . 35 . . Destroy Leader 36 | . 36 . . Successful Hack 25 | . 25 . . Destroy Structure 1 | . 1 . . Lose Combat Pursuer 45 | . 45 . . Influence Decreases 342 | . 341 1 . Entered New Map 1 | . . 1 . Time Decay 311 | . 311 . . Lost Part 30 | . 30 . . Squads Dispatched 2 | . 2 . . Investigation 1 | . 1 . . Extermination . | . . . . Reinforcement 1 | . 1 . . Assault . | . . . . Garrison . | . . . . Intercept . | . . . . Searches Triggered . | . . . . Construction Impeded . | . . . . Haulers Reinforced . | . . . . Active Scanning Responses . | . . . . Cargo Convoy Interrupts . | . . . . Stealth | -11 -10 -10 -10 --------- Run | Yrd Mat Min Exi Distress Signals 3 | . 3 . . Communications Jammed . | . . . . Distress Signals . | . . . . Times Spotted 41 | . 27 9 5 Peak Tracking Total 12 | . 6 12 11 Tactical Retreats 4 | . 2 2 . Traps | -11 -10 -10 -10 ------- Run | Yrd Mat Min Exi Traps Triggered 2 | . 2 . . Indirectly . | . . . . Trap Hack Attempts . | . . . . Triggered . | . . . . Disarmed . | . . . . Reprogrammed . | . . . . Reused . | . . . . Traps Extracted . | . . . . Installed . | . . . . Triggered . | . . . . Machines | -11 -10 -10 -10 ---------- Run | Yrd Mat Min Exi Machines Disabled 1 | . . . 1 Max in Single Turn 1 | . . . 1 Machines Repaired . | . . . . Machines Dismantled . | . . . . Machines Sabotaged . | . . . . Overloaded Fab Kills . | . . . . Hacking | -11 -10 -10 -10 --------- Run | Yrd Mat Min Exi Machines Accessed 9 | . 8 . 1 Terminals 6 | . 6 . . Fabricators . | . . . . Repair Stations 1 | . 1 . . Recycling Units 1 | . 1 . . Scanalyzers . | . . . . Garrison Access . | . . . . Total Hacks 23 | . 22 . 1 Successful 13 | . 12 . 1 Failed 10 | . 10 . . Catastrophic 2 | . 2 . . Database Lockouts . | . . . . Manual 13 | . 12 . 1 Terminals 17 | . 17 . . Fabricators . | . . . . Repair Stations 2 | . 2 . . Recycling Units 3 | . 3 . . Scanalyzers . | . . . . Garrison Access . | . . . . Terminal Hacks 7 | . 6 . 1 Robot Analysis 1 | . 1 . . Locate Traps 3 | . 3 . . Hauler Manifests 1 | . 1 . . Zone Layout 1 | . 1 . . Proto ID Catalog 1 | . . . 1 Fabricator Hacks . | . . . . Repair Station Hacks 1 | . 1 . . Refit 1 | . 1 . . Recycling Unit Hacks 1 | . 1 . . Report Inventory 1 | . 1 . . Scanalyzer . | . . . . Garrison Access Hacks . | . . . . Unauthorized Hacks 4 | . 4 . . Terminals 4 | . 4 . . Botnet 3 | . 3 . . Operators 1 | . 1 . . Fabricators . | . . . . Repair Stations . | . . . . Recycling Units . | . . . . Scanalyzers . | . . . . Garrison Access . | . . . . Data Cores Recovered . | . . . . Used . | . . . . Hacking Detections 8 | . 8 . . Full Trace Events 2 | . 2 . . Feedback Events . | . . . . Feedback Blocked . | . . . . Robot Schematics Acquired . | . . . . Robots Built . | . . . . Authchips . | . . . . Time . | . . . . Total Robot Build Rating . | . . . . Part Schematics Acquired . | . . . . Parts Built . | . . . . Authchips . | . . . . Time . | . . . . Total Part Build Rating . | . . . . Part Studies Acquired . | . . . . Parts Repaired . | . . . . Time . | . . . . Parts Recycled . | . . . . Recycled Matter . | . . . . Retrieved Matter . | . . . . Retrieved Components . | . . . . Parts Scanalyzed . | . . . . Part Schematics Acquired . | . . . . Parts Damaged . | . . . . Bothacking | -11 -10 -10 -10 ------------ Run | Yrd Mat Min Exi Used RIF Installer . | . . . . Robots Hacked . | . . . . Non-combat . | . . . . Combat . | . . . . Robot Hacks Applied . | . . . . Relay Couplers Released . | . . . . Fabnet Peak Effective % . | . . . . Robots Rewired . | . . . . Allies Hacked . | . . . . Hacks Repelled . | . . . . Allies | -11 -10 -10 -10 -------- Run | Yrd Mat Min Exi Total Allies 2 | . . 2 . Largest Group 2 | . . 2 . Highest-Rated Group 39 | . . 39 . Highest-Rated Ally 31 | . . 31 . Total Orders . | . . . . Ally Attacks 5 | . . 5 . Total Damage 107 | . . 107 . Kills 3 | . . 3 . Allies Corrupted . | . . . . Allies Melted . | . . . . Intel | -11 -10 -10 -10 ------- Run | Yrd Mat Min Exi Active Infowar (turns) 328 | . . 328 . Seismic 328 | . . 328 . Robot Analysis Total 1 | . 1 . . Derelict Logs Recovered . | . . . . Drone Launches . | . . . . Drone Recoveries . | . . . . Exploration | -11 -10 -10 -10 ------------- Run | Yrd Mat Min Exi Turns Passed 1952 | 12 1148 462 330 Spaces Moved 1277 | 7 721 304 245 Core . | . . . . Treads 78 | . 78 . . Legs 5 | 5 . . . Wheels 1194 | 2 643 304 245 Hover . | . . . . Flight . | . . . . Fastest Speed 100 | 100 100 130 130 Average Speed 123 | 114 119 130 130 Slowest Speed 175 | 120 175 130 130 Overloaded Moves . | . . . . Propulsion Burnouts . | . . . . Robots Hopped . | . . . . Potential Cave-ins . | . . . . Cave-ins Triggered . | . . . . Exploration Rate (%) 49 | 2 83 61 53 Regions Visited 3 Branch Regions 2 Pre-discovered Areas . | . . . . Known Exits Taken . | . . . . Unknown Exits Taken 3 | 1 1 1 . Scrap Searched 2 | . . 2 . Spaces Dug . | . . . . Terrain Destroyed . | . . . . Melee . | . . . . Projectile . | . . . . AOE . | . . . . Terrain Rammed . | . . . . Walls Destroyed . | . . . . Machines Disabled . | . . . . Actions | -11 -10 -10 -10 --------- Run | Yrd Mat Min Exi Total 1503 | 10 891 347 255 Wait 105 | . 84 21 . Move 1274 | 6 720 303 245 Hop . | . . . . Pick Up 20 | . 10 6 4 Fast Attach 3 | . 3 . . Attach 2 | . 1 1 . Detach 1 | . 1 . . Swap 13 | 2 8 2 1 Drop 10 | 2 4 . 4 Fire 75 | . 60 14 1 Melee . | . . . . Ram . | . . . . Kick . | . . . . Crush . | . . . . Escape Stasis . | . . . . Rewire . | . . . . Trap . | . . . . Miscellaneous . | . . . . Route ------- -11/Scrapyard -10/Materials (discovered 3 exits: [*Mat x2] / [*Min]) -10/Mines -10/Exiles (discovered 1 exit: [*Min]) History --------- Turn | Location | Event 1 | -11/Scrapyard | Discovered new exit (range 1) 13 | -11/Scrapyard | Entered Materials 203 | -10/Materials | Discovered new exit (range 12) 302 | -10/Materials | Build established: Mutant 876 | -10/Materials | Discovered new exit (range 10) 960 | -10/Materials | Discovered new exit (range 9) 1161 | -10/Materials | Entered Mines 1370 | -10/Mines | Assembled infested the area 1375 | -10/Mines | Assisted by a Guerilla fighting off Assembled 1515 | -10/Mines | Core integrity fell below 50% 1617 | -10/Mines | Deemed a non-threat by the Exiles lab entrance 1618 | -10/Mines | Discovered new exit (range 5) 1623 | -10/Mines | Entered Exiles 1640 | -10/Exiles | Discovered new exit (range 15) 1657 | -10/Exiles | Met 8R-AWN 1678 | -10/Exiles | Met EX-HEX 1722 | -10/Exiles | Met EX-BIN 1786 | -10/Exiles | Aligned with FarCom system 1787 | -10/Exiles | Given EX-Vault access code 1819 | -10/Exiles | Opened EX-Vault 1826 | -10/Exiles | Found Cloak of Protection 1831 | -10/Exiles | Found XL Autogun Array 1838 | -10/Exiles | Found Flying Fortress v7 1865 | -10/Exiles | Warned to stay clear of 0b10 Research branches 1905 | -10/Exiles | Met EX-DEC 1931 | -10/Exiles | Attacked by the Exiles 1949 | -10/Exiles | Core integrity fell below 20% 1953 | -10/Exiles | Destroyed by as-91079 with Assembled Heavy Rifle Last Messages --------------- EX-BIN: And don't even think about spreading that code around. We're gonna change it right after you leave. Most certainly not to something like 1234 which I did last time as a little joke and some thief managed to sneak in here and steal a few of HEX's prototypes. EX-DEC: Ah I see we have a visitor. One wrong move in here and I'll invert your atomic chain! 01907_ EX-DEC: "Oops, I hope HEX didn't hear that..." 01930_ Components damaged. 01931_ EXILES: Hostile robot within lab perimeter. Defensive protocols time, folks! 01941_ Lgt. Treads destroyed. 01943_ EX-BIN: "I just want to science!" 01945_ Mining Laser destroyed. 01948_ Lgt. Ion Engine destroyed. 01949_ Critical hit (Burn: +37). 01950_ Med. Laser destroyed. Map ----- +----------------------------------------------------+ | ????????????????????????????????????????"""" ## | | ???????????????????????????????????????#""X" | | ???????????????????????????????????????#" | | ???????????????????????????????????????#" ## | | ???????????????????????????????????????#""""""?# | | ???????????????????????????????????????##"###??# | | ???????????????????????????????????????????????# | | ???????????????????????????????????????????????# | | ??????????????????????????????????????????????## | | ??????????????????????????????????????????????#" | | ??????????????????????????????????????????????#" | | ??????????????????????????????????????????????#" | | ??????????????????????????????????????????????#" | | ???????????????????????????????########???????#" | | ???????????????????????????????# """#???????#" | | ???????????????????????????????#"" """#???????## | | ?????????????"?????????????????#"" #????????# | | ????????????? ????????????????#"" #????????#" | | ???????????? ??????????????# " "#????????#" | | ???????????? ?????????????# ""#????????#" | | ???????????? #???????????#"" ""#???????##" | | ?????????????? ??????????### ###??????##"" | | ??????????????#"" ######???### %###?######"" | | ???????????????#" """#####X# #"###""""""" | | ???????????????#" % """""" " "" | | ?????????????????# @ "" """ " | | ?????????????????## % a aa " " | | ??????????????????### | | ????????????????????### | | ??????????????????????## | | ???????????????????????## | | ????????????????????????##" | | ?????????????????????????#"""z """"" | | ?????????????????????????#" ###### | | ?????????????????????????"" ""##????# | | ????????????????????????#""" """##?????? | | ????????????????????????""" """##??????? | | ????????????????????????""" ""#???????? | | ?????????????????????????" ##???????? | | ?????????????????????????"" ????????? | | ????????????????????????"" ????????? | | ?????????????????????????"" ???????? | | ??????????????????????????""" ????????? | | ???????????????????????????? ?????????? | | ?????????????????????????????? ??????????? | | ?????????????????????????????????????????????????? | | ?????????????????????????????????????????????????? | | ?????????????????????????????????????????????????? | | ?????????????????????????????????????????????????? | | ?????????????????????????????????????????????????? | +----------------------------------------------------+ Best States ------------- Heat Dissipation 35 Energy Generation 10 Energy Capacity 250 Matter Stores 300 Matter Capacity 300 Sight Range 16 Terrain Scan Density 10 Armor Coverage 80 Evasion (%) 40 Targeting Accuracy 5 Recoil Reduction 1 Item Schematics ----------------- None Robot Schematics ------------------ None Fabricated ------------ Nothing Repaired ---------- Nothing Studied --------- None Alien Tech Used ----------------- None Achievements -------------- None Challenges ------------ None Game ------ Seed FortressInsulatedDevice Manual? 0 Play Time 00:24:27 Cumulative 117.4 hours Start 2025.12.04 @ 15:24:59 End 2025.12.04 @ 16:13:36 Sessions 1 Manual Loads 0 Difficulty Rogue Special Mode None Game No. 124 Rogue 94 Adventurer 30 Explorer 0 Win Type - Total 1 Types 1/0/0/0/0/0/0/0/0/0 Lore% 57 Gallery% 47 Achievement% 35 Wizard Run 0 Options --------- Layout 2 ASCII 0 Keyboard 1 Movement Arrows Keybinds 0 Fullscreen 1 Font 24/Tamsyn Map View 50x44 Zoom Use 0% Tactical HUD 1 Map Filters NONE Filters NONE Steam 1 RUN: c4a42f07-e6f0-4365-af1d-31e3a8bbdcd7